[Event "Juniorallsvenskan 2019, Division 1 and 2"]
[Site "Molnlycke kulturhus, Biblioteksgatan 2, Molnlycke, Sweden"]
[Date "2019.11.22"]
[Round "1.5"]
[White "Pantzar, Milton"]
[Black "Crevatin, Leo"]
[Result "0-1"]
[TimeControl "90 minutes + 30 seconds per move from move one"]
[WhiteTitle "FM"]
[BlackTitle "CM"]
[WhiteFideId "1721003"]
[BlackFideId "1726307"]
[WhiteElo "2406"]
[BlackElo "2231"]

1. d4 {[%clk 01:30:48]} {[%emt 00:00:11]} d5 {[%clk 01:30:59]} {[%emt
00:00:02]} 2. c4 {[%clk 01:31:10]} {[%emt 00:00:07]} e6 {[%clk 01:31:19]}
{[%emt 00:00:10]} 3. Nc3 {[%clk 01:31:07]} {[%emt 00:00:33]} a6 {[%clk
01:31:48]} {[%emt 00:00:02]} 4. cxd5 {[%clk 01:29:58]} {[%emt 00:01:38]} exd5
{[%clk 01:32:17]} {[%emt 00:00:02]} 5. Bf4 {[%clk 01:30:00]} {[%emt 00:00:28]}
Nf6 {[%clk 01:31:57]} {[%emt 00:00:50]} 6. e3 {[%clk 01:27:57]} {[%emt
00:02:32]} Bd6 {[%clk 01:31:59]} {[%emt 00:00:28]} 7. Bg5 {[%clk 01:25:24]}
{[%emt 00:03:03]} c6 {[%clk 01:28:14]} {[%emt 00:04:15]} 8. Bd3 {[%clk
01:25:34]} {[%emt 00:00:21]} Be6 {[%clk 01:25:23]} {[%emt 00:03:21]} 9. Nge2
{[%clk 01:24:27]} {[%emt 00:01:37]} h6 {[%clk 01:23:58]} {[%emt 00:01:56]} 10.
Bh4 {[%clk 01:24:23]} {[%emt 00:00:33]} Nbd7 {[%clk 01:22:21]} {[%emt
00:02:06]} 11. f3 {[%clk 01:05:41]} {[%emt 00:19:12]} Qc7 {[%clk 01:15:44]}
{[%emt 00:07:08]} 12. h3 {[%clk 01:00:55]} {[%emt 00:05:16]} g5 {[%clk
01:11:03]} {[%emt 00:05:11]} 13. Bf2 {[%clk 01:01:18]} {[%emt 00:00:07]} h5
{[%clk 01:06:01]} {[%emt 00:05:31]} 14. e4 {[%clk 00:58:19]} {[%emt 00:03:29]}
Be7 {[%clk 01:00:51]} {[%emt 00:05:40]} 15. Rc1 {[%clk 00:50:37]} {[%emt
00:08:12]} Rc8 {[%clk 00:53:38]} {[%emt 00:07:43]} 16. e5 {[%clk 00:42:25]}
{[%emt 00:08:43]} Ng8 {[%clk 00:46:37]} {[%emt 00:07:31]} 17. h4 {[%clk
00:38:36]} {[%emt 00:04:19]} gxh4 {[%clk 00:44:52]} {[%emt 00:02:14]} 18. Bxh4
{[%clk 00:32:54]} {[%emt 00:06:13]} c5 {[%clk 00:42:17]} {[%emt 00:03:05]} 19.
f4 {[%clk 00:28:23]} {[%emt 00:05:01]} Bxh4+ {[%clk 00:32:57]} {[%emt
00:09:50]} 20. Rxh4 {[%clk 00:28:48]} {[%emt 00:00:04]} Ne7 {[%clk 00:33:01]}
{[%emt 00:00:26]} 21. a3 {[%clk 00:15:00]} {[%emt 00:14:19]} Qa5 {[%clk
00:25:59]} {[%emt 00:07:32]} 22. Kf1 {[%clk 00:12:48]} {[%emt 00:02:42]} Bg4
{[%clk 00:24:15]} {[%emt 00:02:14]} 23. Qe1 {[%clk 00:07:57]} {[%emt 00:05:21]}
Qb6 {[%clk 00:20:24]} {[%emt 00:04:21]} 24. b4 {[%clk 00:04:07]} {[%emt
00:04:20]} cxd4 {[%clk 00:17:54]} {[%emt 00:02:59]} 25. Na4 {[%clk 00:03:54]}
{[%emt 00:00:43]} Rxc1 {[%clk 00:15:44]} {[%emt 00:02:40]} 26. Qxc1 {[%clk
00:03:54]} {[%emt 00:00:31]} Qc6 {[%clk 00:14:23]} {[%emt 00:01:51]} 27. Qxc6
{[%clk 00:03:41]} {[%emt 00:00:43]} Nxc6 {[%clk 00:14:46]} {[%emt 00:00:07]} 28.
b5 {[%clk 00:02:31]} {[%emt 00:01:40]} axb5 {[%clk 00:15:06]} {[%emt 00:00:09]}
29. Bxb5 {[%clk 00:02:59]} {[%emt 00:00:03]} Ke7 {[%clk 00:13:00]} {[%emt
00:02:35]} 30. Nb2 {[%clk 00:03:19]} {[%emt 00:00:11]} Ra8 {[%clk 00:11:11]}
{[%emt 00:02:19]} 31. a4 {[%clk 00:03:40]} {[%emt 00:00:10]} Nc5 {[%clk
00:09:43]} {[%emt 00:01:57]} 32. Ng3 {[%clk 00:03:43]} {[%emt 00:00:27]} Ne4
{[%clk 00:09:34]} {[%emt 00:00:40]} 33. Ne2 {[%clk 00:03:15]} {[%emt 00:00:58]}
Nc3 {[%clk 00:08:20]} {[%emt 00:01:43]} 34. Ng3 {[%clk 00:01:07]} {[%emt
00:02:38]} Nxb5 {[%clk 00:08:20]} {[%emt 00:00:31]} 35. axb5 {[%clk 00:01:33]}
{[%emt 00:00:04]} Ra1+ {[%clk 00:08:35]} {[%emt 00:00:15]} 36. Kf2 {[%clk
00:01:59]} {[%emt 00:00:04]} Ra2 {[%clk 00:07:02]} {[%emt 00:02:03]} 37. bxc6
{[%clk 00:02:24]} {[%emt 00:00:05]} Rxb2+ {[%clk 00:07:30]} {[%emt 00:00:02]}
38. Ke1 {[%clk 00:01:40]} {[%emt 00:01:14]} bxc6 {[%clk 00:05:19]} {[%emt
00:02:41]} 39. Nxh5 {[%clk 00:02:05]} {[%emt 00:00:05]} Bxh5 {[%clk 00:05:40]}
{[%emt 00:00:10]} 40. Rxh5 {[%clk 00:02:34]} {[%emt 00:00:01]} Rxg2 {[%clk
00:06:02]} {[%emt 00:00:08]} 41. Rh6 {[%clk 00:02:08]} {[%emt 00:00:56]} Rg6
{[%clk 00:05:18]} {[%emt 00:01:13]} 42. Rh4 {[%clk 00:02:00]} {[%emt 00:00:40]}
Ke6 {[%clk 00:05:01]} {[%emt 00:00:45]} 43. Rh5 {[%clk 00:02:12]} {[%emt
00:00:20]} Rg4 {[%clk 00:04:37]} {[%emt 00:00:53]} 44. Rh6+ {[%clk 00:02:39]}
{[%emt 00:00:03]} Ke7 {[%clk 00:04:44]} {[%emt 00:00:22]} 45. Rf6 {[%clk
00:02:50]} {[%emt 00:00:20]} Rg6 {[%clk 00:05:02]} {[%emt 00:00:11]} 46. Rf5
{[%clk 00:03:17]} {[%emt 00:00:04]} f6 {[%clk 00:05:18]} {[%emt 00:00:14]} 47.
Kd2 {[%clk 00:03:16]} {[%emt 00:00:31]} Rh6 {[%clk 00:05:21]} {[%emt 00:00:27]}
48. exf6+ {[%clk 00:03:07]} {[%emt 00:00:39]} Rxf6 {[%clk 00:05:50]} {[%emt
00:00:01]} 49. Rh5 {[%clk 00:03:21]} {[%emt 00:00:16]} Rxf4 {[%clk 00:06:15]}
{[%emt 00:00:05]} 50. Kd3 {[%clk 00:03:49]} {[%emt 00:00:03]} Kd6 {[%clk
00:06:38]} {[%emt 00:00:06]} 51. Rh6+ {[%clk 00:04:03]} {[%emt 00:00:16]} Kc5
{[%clk 00:07:08]} 52. Rh3 {[%clk 00:04:28]} {[%emt 00:00:05]} Re4 {[%clk
00:07:32]} {[%emt 00:00:06]} 53. Kd2 {[%clk 00:04:55]} {[%emt 00:00:03]} Kc4
{[%clk 00:07:54]} {[%emt 00:00:08]} 54. Rh1 {[%clk 00:05:21]} {[%emt 00:00:03]}
Re3 {[%clk 00:08:09]} {[%emt 00:00:15]} 55. Rc1+ {[%clk 00:05:47]} {[%emt
00:00:04]} Rc3 {[%clk 00:08:36]} {[%emt 00:00:03]} 56. Ra1 {[%clk 00:06:13]}
{[%emt 00:00:05]} c5 {[%clk 00:08:51]} {[%emt 00:00:15]} 57. Ra4+ {[%clk
00:06:27]} {[%emt 00:00:16]} Kb5 {[%clk 00:09:10]} {[%emt 00:00:10]} 58. Ra8
{[%clk 00:06:54]} {[%emt 00:00:04]} Rh3 {[%clk 00:09:28]} {[%emt 00:00:10]} 59.
Ra7 {[%clk 00:07:19]} {[%emt 00:00:06]} c4 {[%clk 00:08:56]} {[%emt 00:01:02]}
60. Rb7+ {[%clk 00:07:47]} {[%emt 00:00:03]} Kc6 {[%clk 00:09:17]} {[%emt
00:00:08]} 61. Rb8 {[%clk 00:08:10]} {[%emt 00:00:08]} Rh2+ {[%clk 00:09:29]}
{[%emt 00:00:17]} 62. Kd1 {[%clk 00:08:36]} {[%emt 00:00:04]} d3 {[%clk
00:09:49]} {[%emt 00:00:09]} 63. Rc8+ {[%clk 00:08:50]} {[%emt 00:00:18]} Kd6
{[%clk 00:10:15]} {[%emt 00:00:04]} 64. Rd8+ {[%clk 00:09:11]} {[%emt
00:00:10]} Kc5 {[%clk 00:10:43]} {[%emt 00:00:01]} 65. Rg8 {[%clk 00:09:32]}
{[%emt 00:00:09]} Kd4 {[%clk 00:10:51]} {[%emt 00:00:22]} 66. Rg1 {[%clk
00:09:35]} {[%emt 00:00:28]} Kc3 {[%clk 00:10:56]} {[%emt 00:00:24]} 67. Kc1
{[%clk 00:09:59]} {[%emt 00:00:06]} d4 {[%clk 00:10:43]} {[%emt 00:00:44]} 68.
Rf1 {[%clk 00:10:21]} {[%emt 00:00:08]} Re2 {[%clk 00:10:58]} {[%emt 00:00:14]}
69. Kb1 {[%clk 00:10:10]} {[%emt 00:00:42]} d2 {[%clk 00:11:14]} {[%emt
00:00:14]} 70. Rf3+ {[%clk 00:10:26]} {[%emt 00:00:14]} Re3 {[%clk 00:11:35]}
{[%emt 00:00:07]} 0-1

[Event "Juniorallsvenskan 2019, Division 1 and 2"]
[Site "Molnlycke kulturhus, Biblioteksgatan 2, Molnlycke, Sweden"]
[Date "2019.11.22"]
[Round "1.6"]
[White "Sorensen, Hampus"]
[Black "Carlsson, Ludvig"]
[Result "1-0"]
[TimeControl "90 minutes + 30 seconds per move from move one"]
[WhiteTitle "FM"]
[BlackTitle "CM"]
[WhiteFideId "8703884"]
[BlackFideId "1727010"]
[WhiteElo "2365"]
[BlackElo "2146"]

1. d4 {[%clk 01:30:52]} {[%emt 00:00:07]} e6 {[%clk 01:30:45]} {[%emt
00:00:14]} 2. c4 {[%clk 01:30:56]} {[%emt 00:00:27]} Bb4+ {[%clk 01:30:55]}
{[%emt 00:00:20]} 3. Bd2 {[%clk 01:30:07]} {[%emt 00:01:19]} Bxd2+ {[%clk
01:31:11]} {[%emt 00:00:14]} 4. Qxd2 {[%clk 01:26:26]} {[%emt 00:04:12]} Nf6
{[%clk 01:31:12]} {[%emt 00:00:29]} 5. g3 {[%clk 01:19:32]} {[%emt 00:07:25]}
O-O {[%clk 01:30:37]} {[%emt 00:01:03]} 6. Bg2 {[%clk 01:19:27]} {[%emt
00:00:36]} d5 {[%clk 01:30:47]} {[%emt 00:00:18]} 7. Nf3 {[%clk 01:17:59]}
{[%emt 00:01:59]} c6 {[%clk 01:30:58]} {[%emt 00:00:18]} 8. O-O {[%clk
01:16:26]} {[%emt 00:02:05]} b6 {[%clk 01:31:19]} {[%emt 00:00:09]} 9. Ne5
{[%clk 01:10:17]} {[%emt 00:06:39]} Bb7 {[%clk 01:29:01]} {[%emt 00:02:46]} 10.
Nc3 {[%clk 01:07:50]} {[%emt 00:02:58]} Nfd7 {[%clk 01:20:04]} {[%emt
00:09:27]} 11. cxd5 {[%clk 01:03:42]} {[%emt 00:04:39]} cxd5 {[%clk 01:19:31]}
{[%emt 00:01:02]} 12. f4 {[%clk 00:56:59]} {[%emt 00:07:14]} f5 {[%clk
01:04:04]} {[%emt 00:15:57]} 13. Rfc1 {[%clk 00:50:39]} {[%emt 00:06:50]} Nxe5
{[%clk 00:59:36]} {[%emt 00:04:58]} 14. dxe5 {[%clk 00:45:57]} {[%emt
00:05:12]} Qd7 {[%clk 00:59:10]} {[%emt 00:00:55]} 15. a4 {[%clk 00:42:38]}
{[%emt 00:03:50]} Ba6 {[%clk 00:59:26]} {[%emt 00:00:13]} 16. a5 {[%clk
00:36:24]} {[%emt 00:06:46]} Bb7 {[%clk 00:38:43]} {[%emt 00:21:12]} 17. e3
{[%clk 00:24:05]} {[%emt 00:12:50]} Rc8 {[%clk 00:37:00]} {[%emt 00:02:12]} 18.
Bf1 {[%clk 00:22:12]} {[%emt 00:02:24]} Na6 {[%clk 00:30:42]} {[%emt 00:06:48]}
19. Nb5 {[%clk 00:18:06]} {[%emt 00:04:36]} Nc5 {[%clk 00:28:29]} {[%emt
00:02:43]} 20. Nd4 {[%clk 00:15:04]} {[%emt 00:03:32]} Ba6 {[%clk 00:22:04]}
{[%emt 00:06:54]} 21. Bxa6 {[%clk 00:14:41]} {[%emt 00:00:54]} Nxa6 {[%clk
00:22:24]} {[%emt 00:00:09]} 22. Rxc8+ {[%clk 00:14:30]} {[%emt 00:00:41]} Qxc8
{[%clk 00:22:37]} {[%emt 00:00:17]} 23. Rc1 {[%clk 00:13:59]} {[%emt 00:01:02]}
Qe8 {[%clk 00:22:07]} {[%emt 00:01:00]} 24. Qc3 {[%clk 00:12:22]} {[%emt
00:02:06]} Nc5 {[%clk 00:17:53]} {[%emt 00:04:44]} 25. b4 {[%clk 00:12:35]}
{[%emt 00:00:18]} Ne4 {[%clk 00:17:51]} {[%emt 00:00:32]} 26. Qc6 {[%clk
00:11:50]} {[%emt 00:01:15]} bxa5 {[%clk 00:16:33]} {[%emt 00:01:48]} 27. bxa5
{[%clk 00:11:15]} {[%emt 00:01:06]} Qxc6 {[%clk 00:16:03]} {[%emt 00:01:00]} 28.
Rxc6 {[%clk 00:11:26]} {[%emt 00:00:19]} Rb8 {[%clk 00:16:27]} {[%emt
00:00:06]} 29. Nxe6 {[%clk 00:11:08]} {[%emt 00:00:49]} Rb1+ {[%clk 00:15:52]}
{[%emt 00:01:04]} 30. Kg2 {[%clk 00:11:32]} {[%emt 00:00:06]} Rb2+ {[%clk
00:15:31]} {[%emt 00:00:51]} 31. Kf1 {[%clk 00:07:28]} {[%emt 00:04:34]} h6
{[%clk 00:09:34]} {[%emt 00:06:27]} 32. Rc7 {[%clk 00:05:33]} {[%emt 00:02:25]}
g5 {[%clk 00:09:57]} {[%emt 00:00:06]} 33. Nd4 {[%clk 00:05:14]} {[%emt
00:00:48]} Rxh2 {[%clk 00:07:43]} {[%emt 00:02:44]} 34. Nxf5 {[%clk 00:05:15]}
{[%emt 00:00:30]} g4 {[%clk 00:07:19]} {[%emt 00:00:54]} 35. e6 {[%clk
00:05:05]} {[%emt 00:00:40]} Nd2+ {[%clk 00:07:04]} {[%emt 00:00:45]} 36. Ke1
{[%clk 00:05:26]} {[%emt 00:00:09]} Nf3+ {[%clk 00:07:28]} {[%emt 00:00:06]} 37.
Kd1 {[%clk 00:05:35]} {[%emt 00:00:20]} d4 {[%clk 00:05:57]} {[%emt 00:02:01]}
38. exd4 {[%clk 00:04:50]} {[%emt 00:01:16]} Rh1+ {[%clk 00:06:01]} {[%emt
00:00:26]} 39. Kc2 {[%clk 00:04:59]} {[%emt 00:00:22]} Re1 {[%clk 00:04:56]}
{[%emt 00:01:34]} 40. e7 {[%clk 00:05:16]} {[%emt 00:00:13]} h5 {[%clk
00:05:14]} {[%emt 00:00:12]} 41. Rc8+ {[%clk 00:02:23]} {[%emt 00:03:23]} Kf7
{[%clk 00:05:35]} {[%emt 00:00:09]} 42. e8=Q+ {[%clk 00:02:00]} {[%emt
00:00:54]} 1-0

[Event "Juniorallsvenskan 2019, Division 1 and 2"]
[Site "Molnlycke kulturhus, Biblioteksgatan 2, Molnlycke, Sweden"]
[Date "2019.11.22"]
[Round "1.7"]
[White "Petersson, Baldur Teodor"]
[Black "Berglind, Axel"]
[Result "1-0"]
[TimeControl "90 minutes + 30 seconds per move from move one"]
[WhiteTitle "CM"]
[WhiteFideId "2309157"]
[BlackFideId "1720228"]
[WhiteElo "2216"]
[BlackElo "2062"]

1. e4 {[%clk 01:30:58]} {[%emt 00:00:01]} c5 {[%clk 01:30:47]} {[%emt
00:00:14]} 2. Nf3 {[%clk 01:31:20]} {[%emt 00:00:08]} d6 {[%clk 01:31:10]}
{[%emt 00:00:07]} 3. d3 {[%clk 01:31:45]} {[%emt 00:00:05]} Nc6 {[%clk
01:29:51]} {[%emt 00:01:49]} 4. g3 {[%clk 01:31:47]} {[%emt 00:00:27]} g6
{[%clk 01:29:42]} {[%emt 00:00:40]} 5. Bg2 {[%clk 01:32:09]} {[%emt 00:00:08]}
Bg7 {[%clk 01:30:07]} {[%emt 00:00:06]} 6. O-O {[%clk 01:32:24]} {[%emt
00:00:15]} Bd7 {[%clk 01:26:30]} {[%emt 00:04:06]} 7. c3 {[%clk 01:31:44]}
{[%emt 00:01:10]} Qc8 {[%clk 01:21:21]} {[%emt 00:05:40]} 8. Re1 {[%clk
01:31:15]} {[%emt 00:00:58]} Bh3 {[%clk 01:21:30]} {[%emt 00:00:21]} 9. Bh1
{[%clk 01:24:45]} {[%emt 00:07:00]} h5 {[%clk 01:20:58]} {[%emt 00:01:03]} 10.
Ng5 {[%clk 01:21:36]} {[%emt 00:03:39]} Bg4 {[%clk 01:21:09]} {[%emt 00:00:19]}
11. Qb3 {[%clk 01:20:46]} {[%emt 00:01:20]} Ne5 {[%clk 01:15:03]} {[%emt
00:06:35]} 12. f4 {[%clk 01:09:00]} {[%emt 00:12:16]} c4 {[%clk 01:15:08]}
{[%emt 00:00:26]} 13. dxc4 {[%clk 01:09:20]} {[%emt 00:00:10]} Nd3 {[%clk
01:15:26]} {[%emt 00:00:12]} 14. Qb5+ {[%clk 01:08:31]} {[%emt 00:01:20]} Bd7
{[%clk 01:13:19]} {[%emt 00:02:36]} 15. Qd5 {[%clk 01:07:32]} {[%emt 00:01:29]}
Nxe1 {[%clk 01:13:42]} {[%emt 00:00:08]} 16. Qxf7+ {[%clk 01:05:30]} {[%emt
00:02:31]} Kd8 {[%clk 01:14:05]} {[%emt 00:00:07]} 17. Qxg7 {[%clk 01:05:34]}
{[%emt 00:00:26]} Qc5+ {[%clk 01:14:26]} {[%emt 00:00:09]} 18. Qd4 {[%clk
01:05:10]} {[%emt 00:00:54]} Kc7 {[%clk 01:08:44]} {[%emt 00:06:12]} 19. Na3
{[%clk 01:02:58]} {[%emt 00:02:42]} Qxd4+ {[%clk 01:05:03]} {[%emt 00:04:11]}
20. cxd4 {[%clk 01:03:26]} {[%emt 00:00:02]} Nd3 {[%clk 01:05:21]} {[%emt
00:00:12]} 21. e5 {[%clk 01:01:21]} {[%emt 00:02:35]} Nxc1 {[%clk 01:05:26]}
{[%emt 00:00:25]} 22. Rxc1 {[%clk 01:01:42]} {[%emt 00:00:08]} dxe5 {[%clk
01:03:54]} {[%emt 00:02:03]} 23. fxe5 {[%clk 01:01:42]} {[%emt 00:00:30]} h4
{[%clk 00:59:57]} {[%emt 00:04:27]} 24. Bf3 {[%clk 00:52:46]} {[%emt 00:09:26]}
hxg3 {[%clk 00:59:00]} {[%emt 00:01:28]} 25. hxg3 {[%clk 00:53:13]} {[%emt
00:00:02]} Rf8 {[%clk 00:55:35]} {[%emt 00:03:54]} 26. Nb5+ {[%clk 00:52:46]}
{[%emt 00:00:58]} Kb6 {[%clk 00:54:38]} {[%emt 00:01:28]} 27. Nc3 {[%clk
00:52:18]} {[%emt 00:00:57]} Rf5 {[%clk 00:52:52]} {[%emt 00:02:17]} 28. Nd5+
{[%clk 00:50:04]} {[%emt 00:02:43]} Ka6 {[%clk 00:47:54]} {[%emt 00:05:28]} 29.
Rc3 {[%clk 00:49:55]} {[%emt 00:00:39]} b5 {[%clk 00:46:35]} {[%emt 00:01:49]}
30. Ne4 {[%clk 00:49:07]} {[%emt 00:01:18]} bxc4 {[%clk 00:44:28]} {[%emt
00:02:38]} 31. Nc5+ {[%clk 00:48:09]} {[%emt 00:01:27]} Kb5 {[%clk 00:44:49]}
{[%emt 00:00:09]} 32. Nxd7 {[%clk 00:45:35]} {[%emt 00:03:04]} Rxf3 {[%clk
00:44:53]} {[%emt 00:00:26]} 33. Rxf3 {[%clk 00:44:56]} {[%emt 00:01:10]} Kc6
{[%clk 00:45:17]} {[%emt 00:00:06]} 34. Rf8 {[%clk 00:44:27]} {[%emt 00:00:59]}
Kxd5 {[%clk 00:44:20]} {[%emt 00:01:25]} 35. Rd8 {[%clk 00:44:46]} {[%emt
00:00:11]} Kxd4 {[%clk 00:43:28]} {[%emt 00:01:23]} 36. e6 {[%clk 00:42:51]}
{[%emt 00:02:25]} Ke4 {[%clk 00:39:16]} {[%emt 00:04:42]} 37. Nf6+ {[%clk
00:43:03]} {[%emt 00:00:17]} Kf5 {[%clk 00:38:00]} {[%emt 00:01:47]} 38. Rxg8
{[%clk 00:43:15]} {[%emt 00:00:18]} Rh6 {[%clk 00:37:46]} {[%emt 00:00:43]} 39.
Nd5 {[%clk 00:42:33]} {[%emt 00:01:12]} Kxe6 {[%clk 00:38:10]} {[%emt
00:00:07]} 40. Nf4+ {[%clk 00:42:53]} {[%emt 00:00:09]} Kf7 {[%clk 00:38:31]}
{[%emt 00:00:10]} 41. Rc8 {[%clk 00:42:12]} {[%emt 00:01:11]} g5 {[%clk
00:38:51]} {[%emt 00:00:10]} 42. Nd5 {[%clk 00:42:19]} {[%emt 00:00:22]} Rd6
{[%clk 00:38:58]} {[%emt 00:00:24]} 43. Ne3 {[%clk 00:42:27]} {[%emt 00:00:18]}
Rd3 {[%clk 00:39:24]} {[%emt 00:00:08]} 44. Nxc4 {[%clk 00:42:26]} {[%emt
00:00:31]} Rxg3+ {[%clk 00:39:47]} {[%emt 00:00:07]} 45. Kf2 {[%clk 00:42:51]}
{[%emt 00:00:05]} Rh3 {[%clk 00:40:03]} {[%emt 00:00:13]} 46. Rc7 {[%clk
00:42:37]} {[%emt 00:00:44]} Rh4 {[%clk 00:40:15]} {[%emt 00:00:19]} 47. a4
{[%clk 00:42:13]} {[%emt 00:00:54]} Ke6 {[%clk 00:38:59]} {[%emt 00:01:45]} 48.
a5 {[%clk 00:42:13]} {[%emt 00:00:30]} Kd5 {[%clk 00:38:16]} {[%emt 00:01:14]}
49. Ne3+ {[%clk 00:42:24]} {[%emt 00:00:19]} Kd6 {[%clk 00:38:40]} {[%emt
00:00:06]} 50. Rxa7 {[%clk 00:42:33]} {[%emt 00:00:21]} Rb4 {[%clk 00:38:51]}
{[%emt 00:00:19]} 51. Ra6+ {[%clk 00:40:35]} {[%emt 00:02:28]} Kc5 {[%clk
00:38:49]} {[%emt 00:00:32]} 52. Rb6 {[%clk 00:40:33]} {[%emt 00:00:32]} Rxb6
{[%clk 00:37:20]} {[%emt 00:01:59]} 53. axb6 {[%clk 00:40:55]} {[%emt
00:00:08]} Kxb6 {[%clk 00:37:48]} {[%emt 00:00:02]} 54. Ke2 {[%clk 00:41:14]}
{[%emt 00:00:11]} Kc5 {[%clk 00:37:36]} {[%emt 00:00:42]} 55. Kd3 {[%clk
00:41:38]} {[%emt 00:00:05]} Kb4 {[%clk 00:37:18]} {[%emt 00:00:48]} 56. Kc2
{[%clk 00:42:03]} {[%emt 00:00:05]} e6 {[%clk 00:35:48]} {[%emt 00:01:59]} 57.
b3 {[%clk 00:42:27]} {[%emt 00:00:06]} Kc5 {[%clk 00:36:00]} {[%emt 00:00:19]}
58. Kc3 {[%clk 00:42:52]} {[%emt 00:00:05]} Kd6 {[%clk 00:36:26]} {[%emt
00:00:04]} 59. b4 {[%clk 00:42:53]} {[%emt 00:00:29]} Ke5 {[%clk 00:32:19]}
{[%emt 00:04:37]} 60. b5 {[%clk 00:41:49]} {[%emt 00:01:34]} Ke4 {[%clk
00:32:30]} {[%emt 00:00:19]} 61. b6 {[%clk 00:41:42]} {[%emt 00:00:37]} 1-0